bitfinex-derivatives/quotes_ETHF0:USTF0_20240830
["timestamp","ask_amount","ask_price","bid_price","bid_amount"]
[1725034678681,3.2078,2456.9,2456.8,0.40705001]
[1725034678887,3.2078,2456.9,2456.8,1e-08]
[1725034679091,3.61483,2456.9,2456.8,1e-08]
[1725034679791,3.2078,2456.9,2456.8,0.40705001]
[1725034680489,1.17461,2457.1,2456.9,0.40702]
[1725034680889,0.7676,2457.1,2457.0,0.40702]
[1725034681284,0.7676,2457.1,2456.8,1e-08]
[1725034681285,4.8372,2457.1,2456.8,0.40704001]
[1725034681489,3.2078,2457.0,2456.8,1e-08]
[1725034681790,4.27875481,2456.9,2456.8,0.40704001]
[1725034681984,4.68578481,2456.9,2456.8,1e-08]
[1725034682188,14.45377481,2456.9,2456.8,1e-08]
[1725034682589,13.43618481,2456.9,2456.8,1e-08]
[1725034682789,8.75618481,2456.9,2456.8,1e-08]
[1725034683399,9.48968481,2456.9,2456.8,1e-08]
[1725034683600,10.50727481,2456.9,2456.8,1e-08]
[1725034685499,9.48968481,2456.9,2456.8,1e-08]
[1725034686104,10.50727481,2456.9,2456.8,1e-08]
[1725034686400,11.52486481,2456.9,2456.8,1e-08]
[1725034687106,1.01777,2456.5,2456.0,0.0202]
[1725034687396,0.40716,2456.2,2456.0,0.42737]
[1725034687793,7.1711703,2456.4,2456.0,0.0202]
[1725034687794,6.1533503,2456.4,2456.0,0.0202]
[1725034687988,6.5604803,2456.4,2456.2,0.40714]
[1725034688192,6.1533503,2456.4,2456.0,0.0202]
[1725034688397,1.42508,2456.1,2456.0,0.0202]
[1725034688801,1.42508,2456.1,2455.2,0.0202]
[1725034688802,0.4073,2455.3,2455.2,0.0202]
[1725034689400,4.28209106,2455.3,2455.2,4.50031]
[1725034689606,1.79326,2455.8,2455.3,0.40729]
[1725034689795,1.90742,2455.8,2455.2,0.0202]
[1725034689997,4.28209106,2455.7,2455.5,0.40726]
[1725034690199,4.28209106,2455.7,2455.2,0.0202]
[1725034690200,0.40726,2455.6,2455.4,0.40727]
[1725034690497,4.62206807,2455.5,2455.4,0.40727]
[1725034690703,0.40728,2455.4,2455.2,0.4275]
[1725034691000,4.89967126,2455.3,2455.2,0.0202]
[1725034691205,7.70017126,2455.3,2455.2,0.42751]
[1725034691499,4.49237126,2455.4,2455.3,0.4073]
[1725034691698,0.706,2455.6,2455.2,0.0202]
[1725034692000,0.40727,2455.5,2455.3,0.40729]
[1725034692408,4.97661031,2455.5,2455.3,0.40729]
[1725034692596,4.56934031,2455.5,2455.2,0.0202]
[1725034692897,0.4073,2455.3,2455.2,0.0202]
[1725034693305,4.76273739,2455.3,2455.2,0.0202]
[1725034693499,4.35543739,2455.3,2455.2,0.42751]
[1725034693799,4.76273739,2455.3,2455.2,0.0202]
[1725034694000,14.53378739,2455.3,2455.2,1e-08]
[1725034694201,0.40737,2454.9,2454.7,0.40739]
[1725034694405,0.4074,2454.7,2454.5,0.40742]
[1725034694710,0.4074,2454.7,2454.2,0.7356]
[1725034694711,0.00610277,2454.8,2454.7,0.4074]
[1725034694914,0.00610277,2454.8,2454.6,0.4074]
[1725034694915,5.04138471,2454.8,2454.6,0.4074]
[1725034695101,5.04138471,2454.8,2454.5,0.40742]
[1725034695294,5.04138471,2454.8,2454.6,0.40741]
[1725034696103,4.63400471,2454.8,2454.2,1.75429]
[1725034696296,4.63400471,2454.8,2454.3,0.40745]
[1725034696497,0.40743,2454.6,2454.4,0.40744]
[1725034696807,3.61522,2454.6,2454.4,0.40744]
[1725034697199,3.2078,2454.6,2454.1,3.9561]
[1725034697398,1.1857,2454.7,2454.5,0.40743]
[1725034697598,1.1857,2454.7,2454.1,1.76702]
[1725034697599,0.00610277,2454.8,2454.2,1.01871]
[1725034697798,0.00610277,2454.8,2454.7,0.4074]
[1725034698703,0.00610277,2454.8,2454.7,4.481]
[1725034698902,0.00610277,2454.8,2454.0,2.03755]
[1725034698903,4.68610277,2454.8,2453.6,0.0202]
[1725034699206,4.68610277,2454.8,2454.2,1.42619]
[1725034699207,3.2078,2454.3,2454.2,1.42619]
[1725034699411,4.33980265,2454.8,2454.7,0.4074]
[1725034699412,3.21390277,2454.8,2454.7,0.4074]
[1725034699705,4.68,2455.3,2455.2,0.40731]
[1725034699706,3.2078,2455.3,2455.2,0.40731]
[1725034699912,3.2078,2455.6,2455.5,0.40726]
[1725034700098,4.0736,2455.6,2455.5,0.40726]
[1725034700299,4.0736,2455.6,2455.5,11.49823]
[1725034700300,3.1148084,2455.6,2455.5,11.49823]
[1725034700505,1.0176,2456.9,2456.3,0.40713]
[1725034700506,3.2078,2456.4,2456.3,0.40713]
[1725034700805,3.2078,2456.4,2456.2,0.40714]
[1725034700806,4.0736,2456.4,2456.2,0.40714]
[1725034700997,4.0736,2456.4,2456.3,0.40713]
[1725034701199,3.2078,2456.4,2456.3,0.40713]
[1725034701400,4.0736,2456.4,2456.1,0.00610277]
[1725034701602,0.8658,2456.2,2456.1,0.00610277]
[1725034701998,5.46534067,2456.2,2455.8,1.4478]
[1725034702202,5.46534067,2456.2,2455.4,0.40727]
[1725034702203,4.0736,2455.9,2455.4,0.40727]
[1725034702405,4.68,2456.1,2455.2,0.40731]
[1725034702406,0.8658,2455.4,2455.2,0.40731]
[1725034702600,0.8658,2455.4,2455.1,1.4617]
[1725034702803,0.8658,2455.4,2455.3,0.4073]
[1725034703005,3.2078,2455.6,2455.1,1.4617]
[1725034703006,3.2078,2455.6,2455.5,0.40726]
[1725034703206,3.61495,2456.2,2455.5,6.0]
[1725034703403,0.8658,2455.9,2455.3,3.2078]
[1725034703601,0.8658,2455.8,2455.6,0.40724]
[1725034704006,3.2078,2455.9,2455.1,1.4617]
[1725034704201,3.2078,2455.6,2455.3,0.40729]
[1725034704405,0.8658,2455.3,2455.1,0.7138]
[1725034704602,0.8658,2455.3,2455.1,1.12112]
[1725034704800,3.2078,2455.6,2455.5,0.40726]
[1725034705007,0.8658,2455.5,2454.7,3.2078]
[1725034705209,0.8658,2455.4,2455.3,0.40728]
[1725034706307,0.00610277,2455.6,2455.5,0.40726]
[1725034706509,0.87190277,2455.6,2455.5,0.40726]
[1725034706701,0.00610277,2455.6,2455.5,4.48006]
[1725034708208,0.87190277,2455.6,2455.4,0.40727]
[1725034708416,0.8658,2455.5,2455.3,0.40728]
[1725034708608,0.8658,2455.5,2455.1,3.2078]
[1725034708808,0.8658,2455.5,2455.4,0.40728]
[1725034709010,0.8658,2455.5,2455.3,0.40729]
[1725034709505,0.8658,2455.5,2455.4,0.40728]
[1725034709816,0.00610277,2455.6,2454.9,1.4773]
[1725034710120,0.00610277,2455.6,2454.3,4.158]
[1725034710121,0.40737,2454.9,2454.3,4.68]
[1725034710416,4.0736,2455.0,2454.3,0.728]
[1725034710417,1.27325,2454.5,2454.3,0.728]
[1725034710607,0.40745,2454.4,2454.3,0.728]
[1725034710806,0.40745,2454.4,2454.1,0.40749]
[1725034710807,0.40746,2454.3,2453.6,0.0202]
[1725034711008,4.0736,2454.4,2453.6,0.0202]
[1725034711009,0.8658,2453.9,2453.6,0.0202]
[1725034711204,0.8658,2453.9,2453.8,0.40755]
[1725034711411,3.2078,2454.1,2454.0,0.4075]
[1725034711707,4.0736,2454.1,2454.0,0.4075]
[1725034712109,0.8658,2454.1,2454.0,0.4075]
[1725034712517,0.00610277,2454.2,2454.1,0.4075]
[1725034712711,0.00610277,2454.2,2454.1,5.1832]
[1725034712912,0.00610277,2454.2,2454.1,11.9149]
[1725034713415,0.00214679,2454.2,2454.1,11.9149]
[1725034714109,0.00214679,2454.2,2454.1,5.9149]
[1725034714309,1.27543679,2454.2,2453.7,4.158]
[1725034714511,0.8658,2454.0,2453.7,0.00398517]
[1725034714711,0.8658,2454.0,2453.9,0.40753]
[1725034714909,0.8658,2453.8,2453.7,0.00398517]
[1725034715107,0.00214679,2454.2,2453.8,0.40755]
[1725034715108,0.8658,2453.9,2453.8,0.40755]
[1725034715514,1.10792679,2454.2,2453.9,0.40753]
[1725034715717,1.10792679,2454.2,2453.8,4.0752]
[1725034715718,4.0736,2454.0,2453.7,0.41153517]
[1725034715921,4.0736,2454.0,2453.7,0.00398517]
[1725034716221,4.0736,2454.0,2453.9,0.40753]
[1725034717009,9.04462409,2454.0,2453.7,0.00398517]
[1725034717215,0.8658,2453.8,2453.7,0.41154517]
[1725034718023,5.98677728,2453.8,2453.7,0.00398517]
[1725034718515,5.57922728,2453.8,2453.7,0.00398517]
[1725034718720,5.98677728,2453.8,2453.7,0.00398517]
[1725034719111,5.57922728,2453.8,2453.7,0.00398517]
[1725034719313,5.98677728,2453.8,2453.7,0.00398517]
[1725034719511,1.01892,2453.7,2452.7,5.17732]
[1725034719710,3.2078,2453.3,2452.7,5.17732]
[1725034719909,3.2078,2453.3,2453.2,0.40765]
[1725034720426,3.2078,2453.3,2453.2,5.50277]
[1725034720611,3.2078,2453.3,2453.2,11.50277]
[1725034720812,3.2078,2453.3,2453.2,12.52189]
[1725034721018,3.2078,2453.8,2453.7,0.40756]
[1725034721218,1.12342,2454.0,2453.5,1.019]
[1725034721219,0.7159,2454.0,2453.5,1.019]
[1725034721516,0.7159,2454.0,2453.8,0.40755]
[1725034721517,4.50163222,2453.9,2453.8,0.40755]
[1725034721715,1.12341,2454.0,2453.9,0.40753]
[1725034721921,0.7159,2454.0,2453.9,0.40753]
[1725034722127,9.29273222,2454.0,2453.5,1.019]
[1725034722437,5.21753222,2454.0,2453.9,0.40753]
[1725034722824,0.40754,2453.9,2453.7,0.40756]
[1725034723026,0.40754,2453.9,2453.3,2.55215]
[1725034723027,3.61535,2453.8,2453.6,0.40757]
[1725034723223,7.83739012,2453.8,2453.7,0.40756]
[1725034723720,11.91259012,2453.8,2453.7,0.40756]
[1725034723920,11.91259012,2453.8,2453.3,0.7674]
[1725034724118,0.40756,2453.7,2453.4,0.40761]
[1725034724422,3.2078,2453.5,2453.4,0.40761]
[1725034724617,3.61541,2453.5,2453.2,0.40764]
[1725034724817,3.61541,2453.5,2452.8,0.765]
[1725034724818,0.40763,2453.3,2453.0,0.40767]
[1725034725018,3.2078,2453.2,2452.6,4.158]
[1725034725217,3.2078,2453.2,2452.5,0.7107]
[1725034725218,3.2078,2452.9,2452.5,0.7107]
[1725034725416,3.62161534,2452.9,2452.5,0.40775]
[1725034725621,3.62161534,2452.9,2452.4,0.765]
[1725034725622,0.7273,2452.8,2452.6,0.40774]
[1725034725820,0.7273,2452.8,2452.4,1.17277]
[1725034726134,1.13502,2452.8,2452.3,4.56579]
[1725034726321,3.2078,2452.6,2452.3,4.158]
[1725034726517,0.00611534,2452.9,2452.8,0.40771]
[1725034726919,0.00611534,2452.9,2452.8,10.48451]
[1725034727620,0.00611534,2452.9,2452.8,11.5038]
[1725034727823,1.257e-05,2452.9,2452.8,13.0018]
[1725034728035,1.257e-05,2452.9,2452.8,11.98251]
[1725034728929,1.257e-05,2452.9,2452.8,13.0018]
[1725034729334,1.257e-05,2452.9,2452.8,11.98251]
[1725034729636,1.257e-05,2452.9,2452.8,5.98251]
[1725034730633,1.257e-05,2452.9,2452.8,0.40771]
[1725034730829,1.257e-05,2452.9,2452.6,0.00611534]
[1725034731023,3.2078,2452.8,2452.7,0.40773]
[1725034731236,3.2078,2452.8,2452.6,0.41385534]
[1725034731832,3.2078,2452.8,2452.7,0.40773]
[1725034732133,3.2078,2452.8,2452.6,0.00611534]
[1725034732524,3.2078,2452.8,2452.7,0.40773]
[1725034732931,3.2078,2452.8,2452.7,4.48453]
[1725034734735,3.2078,2452.8,2452.7,0.40773]
[1725034735237,3.2078,2452.8,2452.6,0.41385534]
[1725034735238,3.61552,2452.8,2452.6,0.41385534]
[1725034735534,0.40773,2452.7,2452.6,0.00611534]
[1725034735732,1.92513,2452.7,2452.6,0.00611534]
[1725034736127,0.40781,2452.3,2452.1,0.40782]
[1725034736337,0.40781,2452.3,2452.0,0.0404]
[1725034736338,3.2078,2452.3,2452.2,0.40781]
[1725034736735,3.2078,2452.3,2452.2,1.42735]
[1725034737535,3.2078,2452.3,2452.2,0.40781]
[1725034737929,3.2078,2452.3,2452.2,5.50495]
[1725034738131,3.2078,2452.6,2452.2,5.09714]
[1725034738332,3.2078,2452.6,2452.5,0.40776]
[1725034739333,3.2078,2452.6,2452.5,1.42717]
[1725034739941,3.2078,2452.6,2452.5,5.50477]
[1725034740144,3.2078,2452.6,2452.5,6.52418]
[1725034740646,1.257e-05,2452.9,2452.8,0.40771]
[1725034741030,4.07681257,2452.9,2452.8,0.40771]
[1725034741228,7.28461257,2452.9,2452.7,0.40773]
[1725034741433,7.88781257,2452.9,2452.1,1.01956]
[1725034741635,0.40777,2452.5,2452.0,5.21801]
[1725034741841,3.2078,2452.2,2452.1,0.40783]
[1725034742138,3.2078,2452.2,2452.1,2.44699]
[1725034742340,3.2078,2452.2,2452.1,12.52539]
[1725034742648,0.7472,2452.6,2452.5,0.40776]
[1725034742938,3.61554,2452.7,2452.3,1.01949]
[1725034742939,3.2078,2452.7,2452.6,0.40775]
[1725034743134,17.9654,2452.7,2452.0,0.0404]
[1725034743337,0.4078,2452.3,2452.2,0.40781]
[1725034743643,0.4078,2452.3,2452.0,0.0404]
[1725034743644,0.40783,2452.1,2452.0,0.0404]
[1725034743948,3.61563,2452.1,2452.0,0.0404]
[1725034744135,3.61563,2452.1,2452.0,0.44825]
[1725034744335,8.71361,2452.1,2452.0,0.0404]
[1725034744533,8.71361,2452.1,2451.7,0.40788]
[1725034744534,0.40787,2451.9,2451.7,0.40788]
[1725034744834,7.60537218,2451.8,2451.7,0.4079]
[1725034745039,8.01325218,2451.8,2451.7,0.4079]
[1725034745339,11.68377218,2451.8,2451.7,0.4079]
[1725034745546,11.68377218,2451.8,2451.6,0.4079]
[1725034745739,8.01326218,2451.8,2451.7,0.4079]
[1725034745935,7.60537218,2451.8,2451.4,1.01987]
[1725034746138,7.60537218,2451.8,2451.7,0.4079]
[1725034746540,4.68,2451.9,2451.7,0.4079]
[1725034746541,3.2078,2452.1,2452.0,0.40785]
[1725034747043,3.2078,2452.1,2451.5,1.01982]
[1725034747044,0.40786,2452.0,2451.8,0.40787]
[1725034747241,4.68,2451.9,2451.5,0.40792]
[1725034747437,4.68,2451.9,2451.2,0.0202]
[1725034747438,3.61572,2451.6,2451.2,0.0202]
[1725034747649,3.2078,2451.3,2451.2,0.42818]
[1725034748050,0.7245,2451.5,2451.4,0.40795]
[1725034748744,9.73358926,2451.5,2451.4,0.40795]
[1725034748940,9.32565926,2451.5,2451.4,0.40795]
[1725034749343,9.32565926,2451.5,2451.3,0.40795]
[1725034749344,9.73359926,2451.5,2451.3,0.40795]
[1725034749539,0.40795,2451.4,2451.3,0.40796]
[1725034749747,9.32565926,2451.5,2451.2,0.0202]
[1725034750050,7.89391534,2451.6,2451.5,0.40793]
[1725034750051,3.21391534,2451.6,2451.5,0.40793]
[1725034750245,3.21391534,2451.6,2451.2,1.04013]
[1725034750246,3.21391534,2451.6,2451.4,0.40794]
[1725034750452,5.01520001,2451.5,2451.3,0.40795]
[1725034750639,4.68,2451.4,2451.3,0.40795]
[1725034750943,4.37503534,2451.6,2451.4,0.40793]
[1725034751147,4.37503534,2451.6,2451.5,0.40793]
[1725034751148,3.96711534,2451.6,2451.5,0.40793]
[1725034751336,3.21391534,2451.6,2451.5,1.42776]
[1725034751740,3.21391534,2451.6,2451.5,2.44759]
[1725034752048,0.00611534,2451.6,2451.5,2.44759]
[1725034752247,0.00611534,2451.6,2451.5,0.40793]
[1725034753053,0.00611534,2451.6,2451.5,6.52679]
[1725034753240,3.2078,2452.1,2452.0,1.42747]
[1725034753739,0.40776,2452.6,2452.5,0.40776]
[1725034753740,3.2078,2452.6,2452.5,0.40776]
[1725034754241,4.35786252,2452.5,2452.3,0.00611534]
[1725034754440,0.40778,2452.4,2452.3,0.00611534]
[1725034754642,5.29847101,2452.4,2451.7,0.7469]
[1725034754848,3.2078,2452.3,2451.7,1.76662]
[1725034755048,3.2078,2452.3,2452.2,0.40781]
[1725034755945,3.2078,2452.6,2452.5,0.40775]
[1725034756145,7.2854,2452.6,2452.4,0.40777]
[1725034756342,7.82782849,2452.6,2452.5,0.40776]
[1725034756851,11.90542849,2452.6,2452.5,0.40776]
[1725034758649,11.90542849,2452.6,2452.4,0.40777]
[1725034758952,0.40777,2452.5,2452.3,0.40779]
[1725034759257,0.40777,2452.5,2452.3,0.40778]
[1725034759645,8.23557849,2452.6,2452.4,0.40777]
[1725034759967,7.82782849,2452.6,2452.5,0.40776]
[1725034760248,8.23557849,2452.6,2452.4,0.40777]
[1725034760551,0.40777,2452.5,2452.4,0.40778]
[1725034760757,0.40777,2452.5,2452.2,0.4078]
[1725034760940,3.2078,2452.3,2451.7,0.7469]
[1725034761143,3.2078,2452.0,2451.9,0.40786]
[1725034761341,4.10731289,2452.2,2452.1,0.40783]
[1725034761655,3.2078,2452.3,2452.2,0.40781]
[1725034761848,4.37274196,2452.2,2451.8,1.01971]
[1725034762157,7.58054196,2452.3,2452.2,0.40781]
[1725034762349,3.2078,2452.3,2452.2,0.40781]
[1725034762551,3.6156,2452.3,2452.1,0.40782]
[1725034762957,8.27922052,2452.3,2452.1,0.40782]
[1725034763262,1.15292,2452.2,2452.0,0.40784]
[1725034763457,5.4251,2452.2,2451.3,4.26142338]
[1725034763754,5.4251,2452.2,2451.0,4.158]
[1725034763755,0.40791,2451.7,2451.2,0.0202]
[1725034764054,4.36081,2451.6,2451.4,0.40793]
[1725034764560,3.9529,2451.6,2451.5,0.40793]
[1725034765047,3.2078,2451.6,2451.5,0.40793]
[1725034765648,3.2078,2451.6,2451.4,1.01985]
[1725034765649,4.68,2451.9,2451.7,0.40788]
[1725034765853,4.36076,2452.0,2451.4,1.01985]
[1725034766158,4.45845126,2451.9,2451.3,1.01988]
[1725034766451,3.6157,2451.7,2451.3,0.40796]
[1725034766649,4.22758,2451.7,2451.2,0.0202]
[1725034766849,4.22758,2451.7,2451.3,0.40795]
[1725034766850,0.40793,2451.5,2451.3,0.40795]
[1725034767045,0.40792,2451.6,2451.4,0.40794]
[1725034767953,3.2078,2451.7,2451.6,0.40791]
[1725034768150,0.40792,2451.6,2451.2,0.0202]
[1725034768350,0.40792,2451.6,2451.4,0.40794]
[1725034768351,0.40791,2451.6,2451.4,0.40794]
[1725034769061,0.40793,2451.5,2451.4,0.40794]
[1725034769245,0.40793,2451.5,2451.2,0.0202]
[1725034769246,0.40795,2451.4,2451.2,0.0202]
[1725034769451,3.2078,2451.3,2451.2,0.42818]
[1725034773352,4.63567,2451.3,2451.2,0.0202]
[1725034773557,13.17157578,2451.3,2451.2,0.0202]
[1725034774856,3.2078,2451.3,2451.2,0.42818]
[1725034775562,0.41405534,2451.5,2451.4,0.40795]
[1725034775563,0.41404534,2451.5,2451.4,0.40795]
[1725034775763,5.97635049,2451.3,2451.2,0.0202]
[1725034775949,12.43628049,2451.3,2450.3,1.05362338]
[1725034776155,3.2078,2451.0,2449.9,5.73362338]
[1725034776361,3.2078,2451.0,2450.8,0.40803]
[1725034776863,4.32200914,2450.9,2450.8,0.40803]
[1725034777166,3.2078,2451.0,2450.9,0.40803]
[1725034777358,7.2878,2451.0,2450.8,0.40804]
[1725034777557,3.2078,2451.0,2450.9,0.40803]
[1725034777959,3.2078,2451.0,2450.8,0.40803]
[1725034778162,3.61582,2451.0,2450.7,0.40805]
[1725034778559,3.61582,2451.0,2450.6,0.6997]
[1725034778560,3.2078,2451.0,2450.6,0.6997]
[1725034778862,3.61581,2451.0,2450.8,0.40804]
[1725034779060,3.2078,2451.0,2450.6,0.6997]
[1725034779259,3.2078,2451.0,2450.8,0.40804]
[1725034779462,3.61582,2451.0,2450.7,0.40805]
[1725034779660,0.40803,2450.9,2450.6,1.10777]
[1725034780054,3.2078,2450.7,2450.1,2.81252338]
[1725034780264,0.40811,2450.5,2450.2,0.40814]
[1725034780458,1.12329,2450.6,2450.3,0.40812]
[1725034780668,0.7152,2450.6,2450.1,1.4778]
[1725034780965,3.2078,2450.4,2450.3,0.40812]
[1725034781466,1.4463,2450.6,2450.5,0.4081]
[1725034781467,0.7152,2450.6,2450.5,0.4081]
[1725034781659,3.2078,2450.7,2450.6,0.40808]
[1725034781968,3.9096,2451.0,2450.8,0.40803]
[1725034782160,0.40803,2450.9,2450.7,0.40805]
[1725034782473,0.40803,2450.9,2450.7,0.40806]
[1725034782474,4.43759857,2450.8,2450.7,0.40806]
[1725034782665,4.43759857,2450.9,2450.8,0.40805]
[1725034782857,3.9096,2451.0,2450.1,14.57722338]
[1725034783065,3.2078,2451.0,2450.9,0.40803]
[1725034783558,3.2078,2451.4,2451.3,0.40796]
[1725034783754,3.61575,2451.4,2451.3,0.40796]
[1725034783962,3.2078,2451.4,2451.3,0.40796]
[1725034785367,0.00611534,2451.5,2451.4,0.40795]
[1725034787067,0.00611534,2451.5,2451.3,0.40795]
[1725034787264,0.00611534,2451.5,2451.1,0.40799]
[1725034787265,3.2078,2451.4,2451.1,0.40799]
[1725034787488,7.72560711,2451.4,2451.3,0.40796]
[1725034787766,11.80480711,2451.4,2451.2,0.40797]
[1725034788068,7.72560711,2451.4,2451.2,0.40798]
[1725034788472,7.72560711,2451.4,2451.3,0.40796]
[1725034789168,0.00611534,2451.5,2451.4,0.40795]
[1725034789968,0.00611534,2451.5,2450.5,2.30153093]
[1725034789969,3.2078,2451.2,2450.5,2.30153093]
[1725034790174,3.2078,2451.2,2450.0,4.08082531]
[1725034790175,3.2078,2450.6,2450.0,2.26965374]
[1725034790466,4.34015021,2451.1,2450.5,3.2078]
[1725034790671,3.2078,2451.3,2451.2,0.40798]
[1725034790861,3.2078,2451.3,2450.9,1.02008]
[1725034790862,3.2078,2451.6,2451.4,0.00611534]
[1725034791065,3.2078,2452.3,2451.5,5.14292658]
[1725034791274,3.2078,2452.7,2451.7,7.8878]
[1725034791563,3.2078,2452.7,2452.1,1.06372658]
[1725034791768,4.74210508,2452.6,2451.9,1.06372658]
[1725034791960,0.40776,2452.5,2451.9,1.06372658]
[1725034792157,5.46312042,2452.6,2452.0,3.2078]
[1725034792158,0.00611534,2452.6,2452.0,3.2078]
[1725034792360,4.68,2452.3,2452.0,0.19752658]
[1725034792672,3.2078,2452.1,2451.5,1.4301]
[1725034792861,0.40785,2452.0,2451.5,1.4301]
[1725034793060,3.61564,2452.1,2451.5,1.4301]
[1725034793465,3.2078,2452.1,2451.5,1.4301]
[1725034794069,3.2078,2452.1,2451.1,5.28749402]
[1725034794070,0.40794,2451.5,2451.1,0.203]
[1725034794265,0.40803,2451.0,2449.9,4.02398]
[1725034794456,3.2078,2450.7,2449.8,0.7056]
[1725034794657,3.2078,2450.4,2449.8,0.7056]
[1725034794857,3.2078,2450.1,2449.8,0.7056]
[1725034795268,3.2078,2450.1,2449.8,4.7872]
[1725034796176,3.2078,2450.1,2449.8,0.7056]
[1725034796367,3.2078,2450.1,2449.7,1.4882]
[1725034796559,0.41426534,2450.2,2449.7,1.4882]
[1725034796560,3.2078,2449.8,2449.7,1.4882]
[1725034796768,3.2078,2449.8,2449.7,5.5706]
[1725034797071,1.97448771,2448.6,2447.4,2.12603357]
[1725034797271,0.00611534,2448.2,2447.8,1.5111]
[1725034797472,3.2078,2449.4,2448.8,0.40837]
[1725034797660,5.18228771,2449.5,2449.0,0.40834]
[1725034797859,5.18228771,2449.5,2449.0,0.7405]
[1725034798068,5.18228771,2449.5,2449.0,1.14884]
[1725034798268,3.2078,2449.4,2449.0,0.7405]
[1725034798463,3.2078,2449.1,2449.0,0.74661534]
[1725034798668,0.00611534,2449.4,2449.0,4.82981534]
[1725034798868,0.00611534,2449.4,2449.1,4.0832]
[1725034799284,0.00611534,2449.4,2449.2,4.0832]
[1725034799569,0.00611534,2449.4,2449.3,4.0824]
[1725034799771,0.00611534,2449.4,2449.3,10.0824]
[1725034801075,0.00611534,2449.4,2449.3,4.0824]
[1725034801277,0.00611534,2449.4,2449.3,10.0824]
[1725034801762,1.98060305,2449.4,2449.0,0.74661534]
[1725034801967,1.97448771,2449.3,2449.0,0.74661534]
[1725034802269,5.18228771,2449.1,2449.0,0.74661534]
[1725034802468,5.18228771,2449.1,2449.0,0.00611534]
[1725034803472,3.2078,2449.1,2449.0,4.08931534]
[1725034803673,3.2078,2449.1,2449.0,11.18886534]
[1725034803875,3.2078,2449.1,2449.0,11.91166534]
[1725034804681,3.2078,2449.1,2449.0,5.91166534]
[1725034804878,3.2078,2449.1,2449.0,11.91166534]
[1725034805176,3.21391534,2449.4,2449.3,0.4083]
[1725034805384,3.2078,2449.7,2449.3,6.0]
[1725034805689,3.2078,2449.7,2449.1,3.2078]
[1725034805690,1.97448771,2449.5,2449.1,3.2078]
[1725034805885,3.2078,2449.7,2449.3,0.40828]
[1725034805886,5.18228771,2449.7,2449.3,0.40828]
[1725034806087,5.18228771,2449.7,2449.1,3.2078]
[1725034806287,0.00611534,2449.6,2449.0,1.42011534]
[1725034806487,0.00611534,2449.6,2449.4,0.40827]
[1725034806682,0.00611534,2449.6,2449.5,4.49066]
[1725034806984,0.00611534,2449.6,2449.5,0.40826]
[1725034807282,0.00611534,2449.6,2449.5,4.49066]
[1725034807688,0.00611534,2449.6,2449.5,4.0824]
[1725034807986,1.98060305,2449.6,2449.3,0.0041]
[1725034808186,1.97448771,2449.5,2449.3,0.0041]
[1725034808781,1.97448771,2449.5,2449.4,0.40828]
[1725034808984,0.00611534,2449.6,2449.5,0.40826]
[1725034809282,0.00611534,2449.6,2449.5,4.49066]
[1725034809685,3.2078,2450.0,2449.9,0.4082]
[1725034809995,3.2078,2450.5,2450.3,0.40812]
[1725034810178,3.2078,2450.5,2449.7,1.02058]
[1725034810179,3.2078,2450.5,2450.4,0.40811]
[1725034810488,1.97448771,2450.5,2450.4,0.40811]
[1725034810700,3.2078,2450.9,2450.4,10.0808]
[1725034810891,3.2078,2450.9,2450.2,1.02036]
[1725034810892,13.79822973,2450.5,2449.5,0.40825]
[1725034811093,1.96837237,2449.9,2449.7,0.40822]
[1725034811390,3.2078,2450.1,2450.0,0.40818]
[1725034811391,1.96837237,2450.1,2450.0,0.40818]
[1725034811688,3.2078,2450.6,2450.0,6.0]
[1725034811899,0.00611534,2450.7,2449.8,3.9149]
[1725034811900,1.97448771,2450.7,2449.8,3.9149]
[1725034812086,0.00611534,2450.7,2450.4,0.40811]
[1725034812391,7.77445797,2450.6,2450.1,0.00611534]
[1725034812594,5.58432237,2450.2,2450.1,0.00611534]
[1725034812888,5.58432237,2450.2,2449.3,0.7112]
[1725034812889,0.40819,2450.0,2449.4,3.9158]
[1725034813091,4.9,2450.0,2449.4,3.9158]
[1725034813391,7.91358592,2450.2,2449.4,7.9982]
[1725034813392,3.2078,2450.2,2449.4,7.9982]
[1725034813592,3.2078,2450.2,2449.7,0.40823]
[1725034813786,3.2078,2449.9,2449.3,0.0041]
[1725034814095,4.2285,2449.4,2448.5,0.708]
[1725034814393,4.9,2449.5,2448.2,0.7115]
[1725034814394,3.2078,2448.7,2448.2,0.7115]
[1725034814586,3.6162,2448.7,2448.2,0.7115]
[1725034814897,3.2078,2448.7,2448.2,0.7115]
[1725034815092,3.2078,2448.4,2448.2,0.7115]
[1725034815281,8.1078,2448.4,2447.4,1.02153]
[1725034815481,0.40847,2448.3,2447.7,0.40855]
[1725034815680,3.2078,2448.1,2447.5,0.727]
[1725034815880,3.2078,2448.1,2447.5,1.74849]
[1725034816082,0.00611534,2448.7,2447.7,3.2078]
[1725034816286,0.00611534,2448.7,2447.5,6.727]
[1725034816287,0.00611534,2448.7,2448.2,0.40847]
[1725034816491,4.51907195,2448.6,2448.1,0.40849]
[1725034816689,3.2078,2448.2,2447.4,0.708]
[1725034816893,3.2078,2448.2,2448.1,0.4085]
[1725034817485,7.51118633,2448.2,2448.0,0.40851]
[1725034817795,7.51118633,2448.2,2447.4,0.708]
[1725034817796,3.2078,2448.6,2447.8,3.2078]
[1725034817999,4.30338633,2448.1,2447.5,0.7188]
[1725034818189,4.30338633,2448.1,2447.1,3.2078]
[1725034818190,3.2078,2448.0,2447.1,3.2078]
[1725034818496,3.2078,2448.0,2447.1,4.94146]
[1725034818799,4.14195551,2447.9,2447.6,0.40857]
[1725034818990,4.14195551,2447.9,2447.7,0.40856]
[1725034819189,3.2078,2448.0,2447.1,8.0054]